fUST/lending_fUST_20250911
["ID","MTS","AMOUNT","RATE_DAILY","PERIOD"]
[384850380,1757591447658,-480.0,0.00015068,2]
[384850381,1757591447668,-1055.29,0.00015068,2]
[384850382,1757591447677,-480.0,0.00015068,2]
[384850383,1757591447686,-480.0,0.00015068,2]
[384850384,1757591447695,-480.0,0.00015068,2]
[384850385,1757591447704,-480.0,0.00015068,2]
[384850386,1757591447714,-470.7,0.00015068,2]
[384850387,1757591447723,-480.0,0.00015068,2]
[384850388,1757591447733,-480.0,0.00015068,2]
[384850389,1757591447742,-480.0,0.00015068,2]
[384850390,1757591447751,-177.197461,0.00015068,2]
[384850391,1757591447761,-476.13629456,0.00015073,2]
[384850392,1757591447770,-217.69300629,0.00015097,2]
[384850393,1757591447779,-160.0,0.00015097,2]
[384850394,1757591447789,-160.0,0.00015097,2]
[384850395,1757591447797,-160.0,0.00015097,2]
[384850396,1757591447807,-530.95967032,0.00015097,2]
[384850397,1757591447817,-160.0,0.00015097,2]
[384850398,1757591447826,-160.0,0.00015097,2]
[384850399,1757591447835,-160.0,0.00015097,2]
[384850400,1757591447844,-846.96613202,0.00015097,2]
[384850401,1757591447853,-417.15472785,0.00015097,2]
[384850402,1757591447863,-233.10680167,0.00015097,2]
[384850403,1757591447871,-393.73,0.00015342,2]
[384850404,1757591447880,-468.05,0.00015342,2]
[384850405,1757591447889,-480.0,0.00015342,2]
[384850406,1757591447899,-480.0,0.00015342,2]
[384850407,1757591447991,-480.0,0.00015342,2]
[384850408,1757591448000,-502.5,0.00015342,2]
[384850409,1757591448009,-480.0,0.00015342,2]
[384850410,1757591448018,-480.0,0.00015342,2]
[384850411,1757591448028,-600.75,0.00015342,2]
[384850412,1757591448037,-480.0,0.00015342,2]
[384850413,1757591448046,-480.0,0.00015342,2]
[384850414,1757591448056,-500.29569944,0.00015342,2]
[384850415,1757591448065,-480.0,0.00015342,2]
[384850416,1757591448074,-480.0,0.00015342,2]
[384850417,1757591448083,-480.0,0.00015342,2]
[384850418,1757591448093,-480.0,0.00015342,2]
[384850419,1757591448102,-480.0,0.00015342,2]
[384850420,1757591448111,-480.0,0.00015342,2]
[384850421,1757591448121,-431.92,0.00015342,2]
[384850422,1757591448130,-480.0,0.00015342,2]
[384850423,1757591448139,-476.59,0.00015342,2]
[384850424,1757591448148,-480.0,0.00015342,2]
[384850425,1757591448158,-480.0,0.00015342,2]
[384850426,1757591448167,-480.0,0.00015342,2]
[384850427,1757591448176,-480.0,0.00015342,2]
[384850428,1757591448185,-466.90899288,0.00015342,2]
[384850429,1757591448501,-500.0,0.00013597,2]
[384850430,1757591448511,-500.0,0.00013597,2]
[384850431,1757591448521,-236.83892069,0.00013597,2]
[384850432,1757591448536,-263.16107931,0.00013597,2]
[384850433,1757591448546,-500.0,0.00013597,2]
[384850434,1757591448555,-500.0,0.00013597,2]
[384850435,1757591448565,-500.0,0.00013597,2]
[384850436,1757591448574,-500.0,0.00013597,2]
[384850437,1757591448583,-500.0,0.00013597,2]
[384850438,1757591448592,-500.0,0.00013597,2]
[384850439,1757591448602,-500.0,0.00013597,2]
[384850440,1757591448611,-500.0,0.00013597,2]
[384850441,1757591448621,-500.0,0.00013597,2]
[384850442,1757591448630,-500.0,0.00013597,2]
[384850443,1757591448640,-500.0,0.00013597,2]
[384850444,1757591448649,-650.0,0.00013597,2]
[384850445,1757591448659,-480.0,0.00013698,2]
[384850446,1757591448669,-480.0,0.00013698,2]
[384850447,1757591448679,-480.0,0.00013972,2]
[384850448,1757591448688,-480.0,0.00014246,2]
[384850449,1757591448698,-480.0,0.0001452,2]
[384850450,1757591448707,-480.0,0.00014794,2]
[384850451,1757591448716,-480.0,0.00015068,2]
[384850452,1757591448726,-13.09100712,0.00015342,2]
[384850453,1757591448735,-480.0,0.00015342,2]
[384850454,1757591448744,-1055.29,0.00015342,2]
[384850455,1757591448753,-480.0,0.00015342,2]
[384850456,1757591448762,-480.0,0.00015342,2]
[384850457,1757591448771,-480.0,0.00015342,2]
[384850458,1757591448782,-480.0,0.00015342,2]
[384850459,1757591448791,-480.0,0.00015342,2]
[384850460,1757591448800,-480.0,0.00015342,2]
[384850461,1757591448810,-480.0,0.00015342,2]
[384850462,1757591448819,-502.5,0.00015616,2]
[384850463,1757591448828,-480.0,0.00015616,2]
[384850464,1757591448837,-398.29,0.00015616,2]
[384850465,1757591448847,-480.0,0.00015616,2]
[384850466,1757591448857,-251.93,0.00015616,2]
[384850467,1757591448867,-480.0,0.00015616,2]
[384850468,1757591448877,-480.0,0.00015616,2]
[384850469,1757591448886,-480.0,0.00015616,2]
[384850470,1757591448896,-886.11085324,0.00015616,2]
[384850471,1757591448911,-169.17914676,0.00015616,2]
[384850472,1757591448920,-480.0,0.00015616,2]
[384850473,1757591448930,-502.5,0.0001589,2]
[384850474,1757591448941,-480.0,0.0001589,2]
[384850475,1757591448951,-480.0,0.0001589,2]
[384850476,1757591448960,-263.12,0.0001589,2]
[384850477,1757591448970,-480.0,0.0001589,2]
[384850478,1757591448979,-1055.29,0.0001589,2]
[384850479,1757591448989,-480.0,0.0001589,2]
[384850480,1757591448998,-502.5,0.00016164,2]
[384850481,1757591449008,-480.0,0.00016164,2]
[384850482,1757591449018,-320.58,0.00016164,2]
[384850483,1757591449027,-166.405707,0.00016164,2]
[384850484,1757591449037,-166.405707,0.00016164,2]
[384850485,1757591449047,-166.405707,0.00016164,2]
[384850486,1757591449056,-166.405707,0.00016164,2]
[384850487,1757591449066,-151.0,0.00016164,2]
[384850488,1757591449075,-151.0,0.00016164,2]
[384850489,1757591449086,-151.0,0.00016164,2]
[384850490,1757591449095,-151.0,0.00016164,2]
[384850491,1757591449104,-151.0,0.00016164,2]
[384850492,1757591449113,-154.91245,0.00016164,2]
[384850493,1757591449122,-151.0,0.00016164,2]
[384850494,1757591449131,-151.0,0.00016164,2]
[384850495,1757591449141,-151.0,0.00016164,2]
[384850496,1757591449150,-151.0,0.00016164,2]
[384850497,1757591449160,-151.0,0.00016164,2]
[384850498,1757591449169,-151.0,0.00016164,2]
[384850499,1757591449178,-480.0,0.00016164,2]
[384850500,1757591449187,-1055.29,0.00016164,2]
[384850501,1757591449197,-480.0,0.00016164,2]
[384850502,1757591449206,-502.5,0.00016438,2]
[384850503,1757591449215,-480.0,0.00016438,2]
[384850504,1757591449224,-480.0,0.00016438,2]
[384850505,1757591449233,-1055.29,0.00016438,2]
[384850506,1757591449243,-480.0,0.00016438,2]
[384850507,1757591449252,-251.64955421,0.00016712,2]
[384850508,1757591449264,-250.85044579,0.00016712,2]
[384850509,1757591449274,-480.0,0.00016712,2]
[384850510,1757591449283,-359.34,0.00016712,2]
[384850511,1757591449293,-1055.29,0.00016712,2]
[384850512,1757591449303,-572.37,0.00016712,2]
[384850513,1757591449312,-502.5,0.00016986,2]
[384850514,1757591449325,-480.0,0.00016986,2]
[384850515,1757591449335,-1055.29,0.00016986,2]
[384850516,1757591449344,-502.5,0.0001726,2]
[384850517,1757591449354,-480.0,0.0001726,2]
[384850518,1757591449364,-608.38205217,0.0001726,2]
[384850519,1757591451532,1000.0,0.00028652,60]
[384850520,1757591460502,1000.0,0.00027397,120]
[384850521,1757591470491,1000.0,0.00027397,120]
[384850522,1757591479202,1000.0,0.00027397,120]
[384850523,1757591488025,1000.0,0.00027397,120]
[384850524,1757591496818,1000.0,0.00027397,120]
[384850525,1757591505794,1000.0,0.00027397,120]
[384850527,1757591516658,1000.0,0.00027397,120]
[384850528,1757591524722,1000.0,0.00027397,120]
[384850529,1757591532617,1000.0,0.00027397,120]
[384850530,1757591537708,784.55621842,0.000145,9]
[384850531,1757591539603,1000.0,0.00028652,120]
[384850532,1757591551036,383.78,0.00027392,120]
[384850533,1757591564223,1000.0,0.00027397,120]
[384850534,1757591578266,1000.0,0.00027397,120]
[384850535,1757591585715,1000.0,0.00027397,120]
[384850536,1757591594110,1000.0,0.00028652,60]
[384850537,1757591611524,893.1610653,0.00028652,60]
[384850539,1757591671447,670.84229302,0.000145,9]
[384850540,1757591679560,168.0,0.000145,9]
[384850542,1757591745973,16014.2775,0.00028641,60]
[384850543,1757591821525,870.43,0.00028641,120]
[384850544,1757591886272,1339.89248215,0.000145,9]
[384850545,1757591908582,1000.0,0.00028641,120]
[384850546,1757591910867,401.15301597,0.000145,9]
[384850547,1757591934945,300.0,0.00013458,2]
[384850548,1757591958441,300.0,0.00013458,2]
[384850549,1757591983218,254.51549965,0.00013458,2]
[384850550,1757591983240,45.48450035,0.00013458,2]
[384850551,1757591986886,-300.0,0.00013594,2]
[384850552,1757591986915,-300.0,0.00013595,2]
[384850553,1757591986947,-300.0,0.00013595,2]
[384850554,1757591986974,-300.0,0.00013595,2]
[384850555,1757591987003,-1200.0,0.00013595,2]
[384850556,1757591987032,-1200.0,0.00013595,2]
[384850557,1757591987059,-500.0,0.00013595,2]
[384850558,1757591987087,-581.37060007,0.00013595,2]
[384850559,1757591987116,-137.26879986,0.00013595,2]
[384850560,1757591987410,-362.73120014,0.00013595,2]
[384850561,1757591987438,-205.00764747,0.00013595,2]
[384850562,1757591987465,-235.52658663,0.00013595,2]
[384850563,1757591987495,-500.0,0.00013595,2]
[384850564,1757591987524,-500.0,0.00013595,2]
[384850565,1757591987552,-500.0,0.00013595,2]
[384850566,1757591987581,-500.0,0.00013595,2]
[384850567,1757591987611,-500.0,0.00013595,2]
[384850568,1757591987641,-500.0,0.00013595,2]
[384850569,1757591987670,-500.0,0.00013595,2]
[384850570,1757591987699,-277.92020524,0.00013595,2]
[384850571,1757591987729,-337.63872104,0.00013595,2]
[384850572,1757592007371,190.0,0.00013458,2]
[384850573,1757592009817,248.58819,0.00027397,120]
[384850574,1757592016646,500.0,0.00028652,60]
[384850575,1757592031800,190.0,0.00013458,2]
[384850576,1757592057253,190.0,0.00013458,2]
[384850577,1757592073991,190.0,0.00013457,2]
[384850578,1757592083951,190.0,0.00013457,2]
[384850579,1757592097044,1444.0,0.00026137,120]
[384850580,1757592099627,2548.92948231,0.000145,9]
[384850581,1757592108418,5000.0,0.000145,9]
[384850582,1757592124067,300.0,0.000145,9]
[384850583,1757592132634,1264.48732804,0.000145,9]
[384850584,1757592149968,300.0,0.000145,9]
[384850586,1757592158609,300.0,0.000145,9]
[384850587,1757592175188,190.0,0.00013457,2]
[384850588,1757592183923,190.0,0.00013457,2]
[384850591,1757592208050,190.0,0.00013457,2]
[384850596,1757592232577,190.0,0.00013457,2]
[384850597,1757592257224,190.0,0.00013457,2]
[384850598,1757592281599,1378.56881283,0.00013437,2]
[384850599,1757592306641,1378.56881283,0.00013437,2]
[384850600,1757592330771,1378.56881283,0.00013437,2]
[384850601,1757592357561,1378.56881283,0.00013437,2]
[384850603,1757592382472,1378.56881283,0.00013437,2]
[384850604,1757592405358,872.66175698,0.00013437,2]
[384850605,1757592412513,1246.79,0.00027397,120]
[384850606,1757592419082,160.130863,0.00013185,2]
[384850607,1757592485767,128.88881552,0.00013437,2]
[384850608,1757592485789,171.11118448,0.00013437,2]
[384850609,1757592486982,-1378.56881283,0.00013573,2]
[384850610,1757592487014,-190.0,0.00013592,2]
[384850611,1757592508435,354.31,0.00012329,2]
[384850612,1757592565425,937073.53,0.00028662,60]
[384850622,1757592632471,-395.77779762,0.00013592,2]
[384850624,1757592632482,-650.542962,0.00013592,2]
[384850625,1757592632492,-1315.14796789,0.00013592,2]
[384850626,1757592632524,-47638.53127249,0.00013592,2]
[384850627,1757592632533,-500.0,0.00013594,2]
[384850628,1757592632542,-317.59449392,0.00013597,2]
[384850629,1757592632551,-195.58438076,0.00013597,2]
[384850630,1757592632559,-919.04587522,0.00013598,2]
[384850631,1757592632569,-786.35623229,0.00013598,2]
[384850632,1757592632578,-500.0,0.00013598,2]
[384850633,1757592632587,-61062.96623548,0.00013598,2]
[384850634,1757592632598,-23157.32027194,0.00013598,2]
[384850636,1757592632610,-495.75084428,0.00013598,2]
[384850700,1757592638382,-230.35563118,0.00013591,2]
[384850701,1757592638391,-500.0,0.00013591,2]
[384850702,1757592638401,-179.57226996,0.00013591,2]
[384850703,1757592638411,-265.33642989,0.00013591,2]
[384850704,1757592638420,-500.0,0.00013591,2]
[384850705,1757592638429,-500.0,0.00013591,2]
[384850706,1757592638439,-536.23708177,0.00013591,2]
[384850707,1757592638449,-500.0,0.00013591,2]
[384850708,1757592638458,-536.23708177,0.00013591,2]
[384850709,1757592638468,-500.0,0.00013591,2]
[384850710,1757592638477,-500.0,0.00013591,2]
[384850711,1757592638486,-500.0,0.00013591,2]
[384850712,1757592638495,-536.23708177,0.00013591,2]
[384850713,1757592638504,-500.0,0.00013591,2]
[384850714,1757592638512,-536.23708177,0.00013591,2]
[384850715,1757592638522,-500.0,0.00013591,2]
[384850716,1757592638531,-500.0,0.00013591,2]
[384850717,1757592638540,-525.12405267,0.00013591,2]
[384850718,1757592638549,-536.23708177,0.00013591,2]
[384850719,1757592638559,-500.0,0.00013591,2]
[384850720,1757592638568,-536.23708177,0.00013591,2]
[384850721,1757592638578,-500.0,0.00013591,2]
[384850722,1757592638587,-500.0,0.00013591,2]
[384850723,1757592638596,-536.23708177,0.00013591,2]
[384850724,1757592638605,-403.02016283,0.00013591,2]
[384850725,1757592638615,-536.23708177,0.00013591,2]
[384850726,1757592638625,-369.21630069,0.00013591,2]
[384850727,1757592638634,-500.0,0.00013591,2]
[384850728,1757592638643,-536.23708177,0.00013591,2]
[384850729,1757592638652,-500.0,0.00013591,2]
[384850730,1757592638661,-536.23708177,0.00013591,2]
[384850731,1757592638671,-500.0,0.00013591,2]
[384850732,1757592638680,-536.23708177,0.00013591,2]
[384850733,1757592638689,-500.0,0.00013591,2]
[384850734,1757592638699,-536.23708177,0.00013591,2]
[384850735,1757592638708,-500.0,0.00013591,2]
[384850736,1757592638716,-536.23708177,0.00013591,2]
[384850737,1757592638726,-500.0,0.00013591,2]
[384850738,1757592638735,-536.23708177,0.00013591,2]
[384850739,1757592638744,-536.23708177,0.00013591,2]
[384850740,1757592638752,-536.23708177,0.00013591,2]
[384850741,1757592638761,-536.23708177,0.00013591,2]
[384850742,1757592638771,-536.23708177,0.00013591,2]
[384850743,1757592638780,-536.23708177,0.00013591,2]
[384850744,1757592638788,-536.23708177,0.00013591,2]
[384850745,1757592638798,-536.23708177,0.00013591,2]
[384850746,1757592638807,-536.23708177,0.00013591,2]
[384850747,1757592638816,-536.23708177,0.00013591,2]
[384850748,1757592638825,-500.0,0.00013591,2]
[384850749,1757592638835,-536.23708177,0.00013591,2]
[384850750,1757592638844,-536.23708177,0.00013591,2]
[384850751,1757592638853,-500.0,0.00013591,2]
[384850752,1757592638865,-536.23708177,0.00013591,2]
[384850753,1757592638874,-536.23708177,0.00013591,2]
[384850754,1757592638884,-536.23708177,0.00013591,2]
[384850755,1757592638893,-536.23708177,0.00013591,2]
[384850756,1757592638902,-536.23708177,0.00013591,2]
[384850757,1757592638911,-536.23708177,0.00013591,2]
[384850758,1757592638920,-536.23708177,0.00013591,2]
[384850759,1757592638930,-536.23708177,0.00013591,2]
[384850760,1757592638939,-536.23708177,0.00013591,2]
[384850761,1757592638948,-536.23708177,0.00013591,2]
[384850762,1757592638958,-536.23708177,0.00013591,2]
[384850763,1757592638967,-536.23708177,0.00013591,2]
[384850764,1757592638977,-536.23708177,0.00013591,2]
[384850765,1757592638986,-536.23708177,0.00013591,2]
[384850766,1757592638996,-536.23708177,0.00013591,2]
[384850767,1757592639006,-536.23708177,0.00013591,2]
[384850768,1757592639016,-536.23708177,0.00013591,2]
[384850769,1757592639025,-536.23708177,0.00013591,2]
[384850770,1757592639034,-536.23708177,0.00013591,2]
[384850771,1757592639043,-536.23708177,0.00013591,2]
[384850772,1757592639053,-536.23708177,0.00013591,2]
[384850773,1757592639063,-536.23708177,0.00013591,2]
[384850774,1757592639073,-536.23708177,0.00013591,2]
[384850775,1757592639083,-536.23708177,0.00013591,2]
[384850776,1757592639092,-536.23708177,0.00013591,2]
[384850777,1757592639102,-536.23708177,0.00013591,2]
[384850778,1757592639113,-536.23708177,0.00013591,2]
[384850779,1757592639123,-536.23708177,0.00013591,2]
[384850780,1757592639132,-536.23708177,0.00013591,2]
[384850781,1757592639141,-536.23708177,0.00013591,2]
[384850782,1757592639150,-536.23708177,0.00013591,2]
[384850783,1757592639159,-536.23708177,0.00013591,2]
[384850784,1757592639169,-536.23708177,0.00013591,2]
[384850785,1757592639178,-536.23708177,0.00013591,2]
[384850786,1757592639187,-536.23708177,0.00013591,2]
[384850787,1757592639196,-536.23708177,0.00013591,2]
[384850788,1757592639205,-536.23708177,0.00013591,2]
[384850789,1757592639215,-536.23708177,0.00013591,2]
[384850790,1757592639224,-536.23708177,0.00013591,2]
[384850791,1757592639234,-536.23708177,0.00013591,2]
[384850792,1757592639243,-118926.48209252,0.00013598,2]
[384850793,1757592639252,-480.0,0.00013698,2]
[384850794,1757592639262,-480.90261047,0.00013698,2]
[384850795,1757592639272,-480.0,0.00013698,2]
[384850796,1757592639282,-480.0,0.00013698,2]
[384850797,1757592639292,-524.63870303,0.00013698,2]
[384850798,1757592639302,-480.0,0.00013698,2]
[384850799,1757592639312,-480.0,0.00013698,2]
[384850800,1757592639322,-480.0,0.00013698,2]
[384850801,1757592639336,-480.0,0.00013698,2]
[384850802,1757592639346,-480.0,0.00013698,2]
[384850803,1757592639355,-480.0,0.00013698,2]
[384850804,1757592639367,-341.44442644,0.00013698,2]
[384850805,1757592639379,-485.9066395,0.00013698,2]
[384850806,1757592639390,-480.0,0.00013698,2]
[384850807,1757592639400,-191.61698532,0.00013698,2]
[384850808,1757592639412,-480.0,0.00013698,2]
[384850809,1757592639422,-480.0,0.00013698,2]
[384850810,1757592639431,-480.0,0.00013698,2]
[384850811,1757592639440,-480.0,0.00013698,2]
[384850812,1757592639450,-500.0,0.00013698,2]
[384850813,1757592639459,-500.0,0.00013698,2]
[384850814,1757592639468,-500.0,0.00013698,2]
[384850815,1757592639478,-500.0,0.00013698,2]
[384850816,1757592639489,-316.96453978,0.00013698,2]
[384850817,1757592639500,-480.0,0.00013698,2]
[384850818,1757592639510,-480.0,0.00013698,2]
[384850819,1757592639519,-321.60384679,0.00013698,2]
[384850820,1757592639529,-480.0,0.00013698,2]
[384850821,1757592639538,-480.0,0.00013698,2]
[384850822,1757592639548,-480.0,0.00013698,2]
[384850823,1757592639556,-480.0,0.00013698,2]
[384850824,1757592639566,-480.0,0.00013698,2]
[384850825,1757592639575,-480.0,0.00013698,2]
[384850826,1757592639584,-487.66748101,0.00013698,2]
[384850827,1757592639593,-480.0,0.00013698,2]
[384850828,1757592639603,-565.21877005,0.00013698,2]
[384850829,1757592639614,-480.0,0.00013698,2]
[384850830,1757592639623,-480.0,0.00013698,2]
[384850831,1757592639633,-480.0,0.00013698,2]
[384850832,1757592639643,-462.69222254,0.00013698,2]
[384850833,1757592639654,-480.0,0.00013698,2]
[384850834,1757592639663,-480.0,0.00013698,2]
[384850835,1757592639673,-480.0,0.00013698,2]
[384850836,1757592639683,-480.0,0.00013698,2]
[384850837,1757592639692,-480.0,0.00013698,2]
[384850838,1757592639702,-480.0,0.00013698,2]
[384850839,1757592639711,-481.38970939,0.00013698,2]
[384850840,1757592639722,-480.0,0.00013698,2]
[384850841,1757592639732,-480.0,0.00013698,2]
[384850842,1757592639742,-480.0,0.00013698,2]
[384850844,1757592639752,-490.52859399,0.00013698,2]
[384850846,1757592639761,-480.0,0.00013698,2]
[384850847,1757592639771,-484.0484773,0.00013698,2]
[384850848,1757592639780,-480.0,0.00013698,2]
[384850849,1757592639790,-482.80431564,0.00013698,2]
[384850851,1757592639799,-497.99,0.00013698,2]
[384850853,1757592639808,-480.0,0.00013698,2]
[384850854,1757592639818,-480.0,0.00013698,2]
[384850856,1757592639827,-480.0,0.00013698,2]
[384850857,1757592639836,-601.75679412,0.00013698,2]
[384850858,1757592639845,-627.62659272,0.00013698,2]
[384850860,1757592639855,-480.0,0.00013698,2]
[384850862,1757592639868,-480.0,0.00013698,2]
[384850864,1757592639877,-480.0,0.00013698,2]
[384850866,1757592639886,-480.0,0.00013698,2]
[384850867,1757592639895,-480.0,0.00013698,2]
[384850868,1757592639904,-480.0,0.00013698,2]
[384850869,1757592639913,-480.0,0.00013698,2]
[384850870,1757592639922,-480.0,0.00013698,2]
[384850871,1757592639931,-480.0,0.00013698,2]
[384850872,1757592639940,-483.75456902,0.00013698,2]
[384850873,1757592639949,-480.0,0.00013698,2]
[384850874,1757592639960,-480.0,0.00013698,2]
[384850875,1757592639970,-480.0,0.00013698,2]
[384850876,1757592639979,-485.3992557,0.00013698,2]
[384850877,1757592639989,-480.0,0.00013698,2]
[384850878,1757592639998,-615.84999281,0.00013698,2]
[384850879,1757592640008,-480.0,0.00013698,2]
[384850880,1757592640018,-480.0,0.00013698,2]
[384850881,1757592640027,-480.0,0.00013698,2]
[384850882,1757592640037,-480.0,0.00013698,2]
[384850883,1757592640047,-480.0,0.00013698,2]
[384850884,1757592640056,-489.01416016,0.00013698,2]
[384850885,1757592640066,-480.0,0.00013698,2]
[384850886,1757592640075,-480.0,0.00013698,2]
[384850887,1757592640085,-480.0,0.00013698,2]
[384850888,1757592640094,-480.0,0.00013698,2]
[384850889,1757592640104,-480.0,0.00013698,2]
[384850891,1757592640116,-480.0,0.00013698,2]
[384850892,1757592640125,-480.0,0.00013698,2]
[384850893,1757592640134,-480.0,0.00013698,2]
[384850894,1757592640144,-480.0,0.00013698,2]
[384850895,1757592640153,-400.0,0.00013698,2]
[384850896,1757592640162,-480.0,0.00013698,2]
[384850897,1757592640171,-480.0,0.00013698,2]
[384850898,1757592640180,-243.99611491,0.00013698,2]
[384850899,1757592640190,-480.0,0.00013698,2]
[384850900,1757592640199,-480.0,0.00013698,2]
[384850901,1757592640208,-480.0,0.00013698,2]
[384850902,1757592640217,-377.04068905,0.00013698,2]
[384850903,1757592640227,-480.0,0.00013698,2]
[384850904,1757592640236,-480.0,0.00013698,2]
[384850905,1757592640246,-484.80241787,0.00013698,2]
[384850906,1757592640254,-480.0,0.00013698,2]
[384850907,1757592640263,-262.03649578,0.00013698,2]
[384850908,1757592640273,-480.0,0.00013698,2]
[384850909,1757592640283,-480.0,0.00013698,2]
[384850910,1757592640292,-480.0,0.00013698,2]
[384850911,1757592640302,-480.0,0.00013698,2]
[384850912,1757592640311,-480.0,0.00013698,2]
[384850913,1757592640321,-480.0,0.00013698,2]
[384850914,1757592640330,-480.0,0.00013698,2]
[384850915,1757592640339,-480.0,0.00013698,2]
[384850916,1757592640348,-480.0,0.00013698,2]
[384850917,1757592640358,-224.91874474,0.00013698,2]
[384850918,1757592640368,-480.0,0.00013698,2]
[384850919,1757592640377,-480.0,0.00013698,2]
[384850920,1757592640387,-480.0,0.00013698,2]
[384850921,1757592640396,-480.0,0.00013698,2]
[384850922,1757592640406,-480.0,0.00013698,2]
[384850923,1757592640415,-480.0,0.00013698,2]
[384850924,1757592640424,-480.0,0.00013698,2]
[384850925,1757592640433,-480.0,0.00013698,2]
[384850926,1757592640442,-480.0,0.00013698,2]
[384850927,1757592640452,-480.0,0.00013698,2]
[384850928,1757592640461,-480.0,0.00013698,2]
[384850929,1757592640470,-480.0,0.00013698,2]
[384850930,1757592640479,-420.74100698,0.00013698,2]
[384850931,1757592640489,-480.0,0.00013698,2]
[384850932,1757592640498,-480.0,0.00013698,2]
[384850933,1757592640508,-480.0,0.00013698,2]
[384850934,1757592640517,-480.0,0.00013698,2]
[384850935,1757592640527,-480.0,0.00013698,2]
[384850936,1757592640536,-480.0,0.00013698,2]
[384850937,1757592640545,-480.0,0.00013698,2]
[384850938,1757592640651,-480.0,0.00013698,2]
[384850939,1757592640661,-480.0,0.00013698,2]
[384850940,1757592640670,-480.0,0.00013698,2]
[384850941,1757592640680,-415.94817367,0.00013698,2]
[384850942,1757592640690,-480.0,0.00013698,2]
[384850943,1757592640699,-480.0,0.00013698,2]
[384850944,1757592640708,-480.0,0.00013698,2]
[384850945,1757592640718,-480.0,0.00013698,2]
[384850946,1757592640727,-480.0,0.00013698,2]
[384850947,1757592640736,-480.0,0.00013698,2]
[384850948,1757592640746,-481.02814707,0.00013698,2]
[384850949,1757592640754,-480.0,0.00013698,2]
[384850950,1757592640763,-480.0,0.00013698,2]
[384850951,1757592640773,-480.0,0.00013698,2]
[384850952,1757592640781,-485.46850804,0.00013698,2]
[384850953,1757592640790,-480.0,0.00013698,2]
[384850954,1757592640799,-481.80064889,0.00013698,2]
[384850955,1757592640808,-480.0,0.00013698,2]
[384850956,1757592640817,-480.0,0.00013698,2]
[384850957,1757592640826,-190.13547588,0.00013698,2]
[384850958,1757592640835,-357.09168413,0.00013698,2]
[384850959,1757592640844,-480.0,0.00013698,2]
[384850960,1757592640853,-483.24766933,0.00013698,2]
[384850961,1757592640862,-480.0,0.00013698,2]
[384850962,1757592640871,-483.25104609,0.00013698,2]
[384850963,1757592640880,-480.0,0.00013698,2]
[384850964,1757592640889,-480.0,0.00013698,2]
[384850965,1757592640898,-486.38592804,0.00013698,2]
[384850966,1757592640907,-480.0,0.00013698,2]
[384850967,1757592640916,-480.0,0.00013698,2]
[384850968,1757592640925,-480.0,0.00013698,2]
[384850969,1757592640934,-480.0,0.00013698,2]
[384850970,1757592640943,-480.0,0.00013698,2]
[384850971,1757592640951,-530.36517927,0.00013698,2]
[384850972,1757592640960,-480.0,0.00013698,2]
[384850973,1757592640969,-480.0,0.00013698,2]
[384850974,1757592640978,-480.0,0.00013698,2]